lending/lending_fUSD_20241229
["ID","MTS","AMOUNT","RATE_DAILY","PERIOD"]
[347133372,1735515042059,-573.27,0.00013818,2]
[347133373,1735515042069,-500.0,0.00013818,2]
[347133374,1735515042079,-500.0,0.00013818,2]
[347133375,1735515042089,-1451.29,0.00013818,2]
[347133376,1735515042099,-500.0,0.00013818,2]
[347133377,1735515042112,-500.0,0.00013818,2]
[347133378,1735515042121,-867.02,0.00013818,2]
[347133379,1735515042131,-500.0,0.00013818,2]
[347133380,1735515042141,-1288.27,0.00013818,2]
[347133381,1735515042151,-536.85,0.00013818,2]
[347133382,1735515042162,-732.34,0.00013818,2]
[347133383,1735515042173,-500.0,0.00013818,2]
[347133384,1735515042183,-500.0,0.00013818,2]
[347133385,1735515042193,-517.31,0.00013818,2]
[347133386,1735515042203,-500.0,0.00013818,2]
[347133387,1735515042213,-1404.78,0.00013818,2]
[347133388,1735515042223,-545.06,0.00013818,2]
[347133389,1735515042233,-619.57,0.00013818,2]
[347133390,1735515042244,-678.76,0.00013818,2]
[347133391,1735515042254,-917.89,0.00013818,2]
[347133392,1735515042264,-819.71,0.00013818,2]
[347133393,1735515042274,-500.0,0.00013818,2]
[347133394,1735515042288,-500.0,0.00013818,2]
[347133395,1735515042298,-500.0,0.00013818,2]
[347133396,1735515042308,-500.0,0.00013818,2]
[347133397,1735515042318,-500.0,0.00013818,2]
[347133398,1735515042328,-1108.14,0.00013818,2]
[347133399,1735515042338,-500.0,0.00013818,2]
[347133400,1735515042348,-500.0,0.00013818,2]
[347133401,1735515042360,-558.64,0.00013818,2]
[347133402,1735515042370,-518.38,0.00013818,2]
[347133403,1735515042380,-828.17,0.00013818,2]
[347133404,1735515042390,-500.0,0.00013818,2]
[347133405,1735515042400,-650.35,0.00013818,2]
[347133406,1735515042410,-571.12,0.00013818,2]
[347133407,1735515042419,-741.36,0.00013818,2]
[347133408,1735515042429,-682.49,0.00013818,2]
[347133409,1735515042439,-500.0,0.00013818,2]
[347133410,1735515042449,-558.91,0.00013818,2]
[347133411,1735515042460,-500.0,0.00013818,2]
[347133412,1735515042469,-740.49,0.00013818,2]
[347133413,1735515042479,-651.49,0.00013818,2]
[347133414,1735515042489,-683.0,0.00013818,2]
[347133415,1735515042500,-956.02,0.00013818,2]
[347133416,1735515042510,-686.84,0.00013818,2]
[347133417,1735515042520,-676.6,0.00013818,2]
[347133418,1735515042530,-671.27,0.00013818,2]
[347133419,1735515042540,-1026.11,0.00013818,2]
[347133420,1735515042550,-890.04,0.00013818,2]
[347133421,1735515042560,-700.98,0.00013818,2]
[347133422,1735515042571,-797.05,0.00013818,2]
[347133423,1735515042581,-736.52,0.00013818,2]
[347133424,1735515042595,-500.0,0.00013819,2]
[347133425,1735515042605,-500.0,0.00013819,2]
[347133426,1735515042615,-500.0,0.00013819,2]
[347133427,1735515042627,-342.83951428,0.00013819,2]
[347133428,1735515042637,-500.0,0.00013819,2]
[347133429,1735515042647,-500.0,0.00013819,2]
[347133430,1735515042657,-500.0,0.00013819,2]
[347133431,1735515042667,-500.0,0.00013819,2]
[347133433,1735515042676,-500.0,0.00013819,2]
[347133434,1735515042686,-500.0,0.00013819,2]
[347133437,1735515042696,-500.0,0.00013819,2]
[347133441,1735515042707,-500.0,0.00013819,2]
[347133443,1735515042717,-500.0,0.00013819,2]
[347133445,1735515042727,-500.0,0.00013819,2]
[347133447,1735515042737,-500.0,0.00013819,2]
[347133449,1735515042748,-361.73885045,0.00013819,2]
[347133450,1735515042758,-500.0,0.00013819,2]
[347133451,1735515042768,-640.96318355,0.00013819,2]
[347133452,1735515042778,-500.0,0.00013819,2]
[347133453,1735515042788,-500.0,0.00013819,2]
[347133454,1735515042798,-500.0,0.00013819,2]
[347133455,1735515042808,-500.0,0.00013819,2]
[347133456,1735515042818,-541.65,0.00013819,2]
[347133457,1735515042828,-500.0,0.00013819,2]
[347133458,1735515042838,-500.0,0.00013819,2]
[347133459,1735515042848,-500.0,0.00013819,2]
[347133460,1735515042859,-535.59,0.00013819,2]
[347133461,1735515042868,-509.91,0.00013819,2]
[347133462,1735515042878,-500.0,0.00013819,2]
[347133463,1735515042887,-500.0,0.00013819,2]
[347133464,1735515042898,-500.0,0.00013819,2]
[347133465,1735515042908,-520.3,0.00013819,2]
[347133466,1735515042918,-500.0,0.00013819,2]
[347133467,1735515042928,-500.0,0.00013819,2]
[347133468,1735515042938,-500.0,0.00013819,2]
[347133469,1735515042947,-500.0,0.00013819,2]
[347133470,1735515042957,-500.0,0.00013819,2]
[347133471,1735515042967,-500.0,0.00013819,2]
[347133472,1735515042977,-500.0,0.00013819,2]
[347133473,1735515042987,-500.0,0.00013819,2]
[347133474,1735515042996,-500.0,0.00013819,2]
[347133475,1735515043006,-500.0,0.00013819,2]
[347133476,1735515043016,-500.0,0.00013819,2]
[347133477,1735515043026,-179.88079041,0.00013819,2]
[347133478,1735515043036,-500.0,0.00013819,2]
[347133479,1735515043046,-500.0,0.00013819,2]
[347133480,1735515043056,-338.72046711,0.00013819,2]
[347133481,1735515043066,-500.0,0.00013819,2]
[347133482,1735515043076,-500.0,0.00013819,2]
[347133483,1735515043086,-500.0,0.00013819,2]
[347133484,1735515043096,-500.0,0.00013819,2]
[347133485,1735515043107,-500.0,0.00013819,2]
[347133486,1735515043118,-500.0,0.00013819,2]
[347133487,1735515043128,-500.0,0.00013819,2]
[347133488,1735515043138,-507.11295745,0.00013819,2]
[347133489,1735515043147,-500.0,0.00013819,2]
[347133490,1735515043158,-335.25,0.00013819,2]
[347133491,1735515043168,-500.0,0.00013819,2]
[347133492,1735515043178,-500.0,0.00013819,2]
[347133493,1735515043188,-500.0,0.00013819,2]
[347133494,1735515043199,-500.0,0.00013819,2]
[347133495,1735515043209,-500.0,0.00013819,2]
[347133496,1735515043219,-500.0,0.00013819,2]
[347133497,1735515043228,-500.0,0.00013819,2]
[347133498,1735515043238,-500.0,0.00013819,2]
[347133499,1735515043248,-500.0,0.00013819,2]
[347133500,1735515043257,-544.91,0.00013819,2]
[347133501,1735515043267,-500.0,0.00013819,2]
[347133502,1735515043278,-500.0,0.00013819,2]
[347133503,1735515043289,-500.0,0.00013819,2]
[347133504,1735515043299,-587.02,0.00013819,2]
[347133505,1735515043308,-500.0,0.00013819,2]
[347133506,1735515043318,-550.01,0.00013819,2]
[347133507,1735515043328,-500.0,0.00013819,2]
[347133508,1735515043338,-500.0,0.00013819,2]
[347133509,1735515043348,-500.0,0.00013819,2]
[347133510,1735515043358,-793.26,0.00013819,2]
[347133511,1735515043369,-500.0,0.00013819,2]
[347133512,1735515043379,-500.0,0.00013819,2]
[347133513,1735515043389,-500.0,0.00013819,2]
[347133514,1735515043399,-592.34926505,0.00013819,2]
[347133517,1735515043409,-500.0,0.00013819,2]
[347133520,1735515043419,-500.0,0.00013819,2]
[347133521,1735515043429,-500.0,0.00013819,2]
[347133522,1735515043439,-500.0,0.00013819,2]
[347133523,1735515043449,-500.0,0.00013819,2]
[347133524,1735515043458,-500.0,0.00013819,2]
[347133525,1735515043469,-500.0,0.00013819,2]
[347133526,1735515043480,-419.85616787,0.00013819,2]
[347133527,1735515043491,-500.0,0.00013819,2]
[347133528,1735515043503,-500.0,0.00013819,2]
[347133529,1735515043514,-500.0,0.00013819,2]
[347133530,1735515043525,-500.0,0.00013819,2]
[347133531,1735515043535,-500.0,0.00013819,2]
[347133532,1735515043545,-500.0,0.00013819,2]
[347133533,1735515043555,-500.0,0.00013819,2]
[347133534,1735515043565,-500.0,0.00013819,2]
[347133535,1735515043576,-500.0,0.00013819,2]
[347133536,1735515043587,-500.0,0.00013819,2]
[347133537,1735515043599,-500.0,0.00013819,2]
[347133538,1735515043611,-500.0,0.00013819,2]
[347133539,1735515043622,-500.0,0.00013819,2]
[347133540,1735515043632,-567.41,0.00013819,2]
[347133541,1735515043642,-500.0,0.00013819,2]
[347133542,1735515043652,-500.0,0.00013819,2]
[347133543,1735515043662,-500.0,0.00013819,2]
[347133544,1735515043672,-500.0,0.00013819,2]
[347133545,1735515043683,-500.0,0.00013819,2]
[347133546,1735515043692,-500.0,0.00013819,2]
[347133547,1735515043702,-500.0,0.00013819,2]
[347133548,1735515043712,-500.0,0.00013819,2]
[347133549,1735515043721,-189.83353284,0.00013819,2]
[347133550,1735515043731,-500.0,0.00013819,2]
[347133551,1735515043741,-500.0,0.00013819,2]
[347133552,1735515043751,-597.12309635,0.00013819,2]
[347133553,1735515043761,-500.0,0.00013819,2]
[347133554,1735515043771,-500.0,0.00013819,2]
[347133555,1735515043780,-720.21,0.00013819,2]
[347133556,1735515043790,-500.0,0.00013819,2]
[347133557,1735515043800,-500.0,0.00013819,2]
[347133558,1735515043810,-500.0,0.00013819,2]
[347133559,1735515043819,-500.0,0.00013819,2]
[347133560,1735515043829,-500.0,0.00013819,2]
[347133561,1735515043839,-500.0,0.00013819,2]
[347133562,1735515043848,-500.0,0.00013819,2]
[347133563,1735515043860,-500.0,0.00013819,2]
[347133564,1735515043870,-500.0,0.00013819,2]
[347133565,1735515043880,-500.0,0.00013819,2]
[347133566,1735515043890,-500.0,0.00013819,2]
[347133567,1735515043900,-500.0,0.00013819,2]
[347133568,1735515043910,-500.0,0.00013819,2]
[347133569,1735515043919,-500.0,0.00013819,2]
[347133570,1735515043929,-500.0,0.00013819,2]
[347133571,1735515043939,-500.0,0.00013819,2]
[347133572,1735515043949,-3600.46698854,0.00013819,2]
[347133573,1735515043959,-500.0,0.00013819,2]
[347133574,1735515043970,-500.0,0.00013819,2]
[347133575,1735515043979,-500.0,0.00013819,2]
[347133576,1735515043990,-500.0,0.00013819,2]
[347133577,1735515044000,-500.0,0.00013819,2]
[347133578,1735515044010,-500.0,0.00013819,2]
[347133579,1735515044020,-825.39,0.00013819,2]
[347133580,1735515044030,-1877.51,0.00013819,2]
[347133581,1735515044041,-2875.26,0.0001382,2]
[347133582,1735515044052,-4377.35,0.0001382,2]
[347133583,1735515044063,-1365.07,0.0001382,2]
[347133584,1735515044075,-2286.58,0.0001382,2]
[347133585,1735515044305,-561.73,0.0001382,2]
[347133586,1735515044315,-1384.46,0.0001382,2]
[347133587,1735515044324,-1317.02,0.0001382,2]
[347133588,1735515044334,-1495.71,0.0001382,2]
[347133589,1735515044343,-1011.62,0.0001382,2]
[347133590,1735515044353,-1406.51,0.0001382,2]
[347133591,1735515044363,-3010.3,0.0001382,2]
[347133592,1735515044372,-4019.91,0.0001382,2]
[347133593,1735515044382,-4019.91,0.0001382,2]
[347133594,1735515044391,-16346.07,0.0001382,2]
[347133595,1735515044401,-2665.01,0.0001382,2]
[347133596,1735515044411,-1426.18,0.0001382,2]
[347133597,1735515044420,-1376.27,0.0001382,2]
[347133598,1735515044430,-2654.74,0.0001382,2]
[347133599,1735515044439,-18349.74,0.0001382,2]
[347133600,1735515044449,-848.02,0.0001382,2]
[347133601,1735515044458,-3541.06,0.0001382,2]
[347133602,1735515044468,-2143.48,0.0001382,2]
[347133603,1735515044478,-1407.67,0.0001382,2]
[347133604,1735515044487,-3959.85,0.0001382,2]
[347133605,1735515044497,-156.67,0.0001382,2]
[347133606,1735515044506,-663.08,0.0001382,2]
[347133607,1735515044516,-1374.56,0.0001382,2]
[347133608,1735515044526,-1420.5,0.0001382,2]
[347133609,1735515044535,-1052.04,0.0001382,2]
[347133610,1735515044544,-1802.11,0.0001382,2]
[347133611,1735515044554,-3636.77,0.0001382,2]
[347133612,1735515044563,-941.66,0.0001382,2]
[347133613,1735515044573,-1768.44,0.0001382,2]
[347133614,1735515044583,-2649.82,0.0001382,2]
[347133615,1735515044598,-2150.96,0.0001382,2]
[347133616,1735515044610,-1212.46,0.0001382,2]
[347133617,1735515044620,-954.02,0.0001382,2]
[347133618,1735515044633,-1949.38,0.0001382,2]
[347133619,1735515044642,-500.0,0.00013859,2]
[347133620,1735515044652,-1300.0,0.000139,5]
[347133621,1735515044664,-985.98,0.00013958,2]
[347133622,1735515044674,-500.0,0.00013958,2]
[347133623,1735515044684,-2146.44,0.00013958,2]
[347133624,1735515044694,-804.81,0.00013958,2]
[347133625,1735515044703,-1306.28,0.00013958,2]
[347133626,1735515044712,-8151.39,0.00013958,2]
[347133627,1735515044722,-500.0,0.00013958,2]
[347133628,1735515044732,-1148.14,0.00013958,2]
[347133629,1735515044741,-679.64,0.00013958,2]
[347133630,1735515044751,-1650.9,0.00013958,2]
[347133631,1735515044760,-500.0,0.00013958,2]
[347133632,1735515044769,-3090.99,0.00013958,2]
[347133633,1735515044779,-780.88,0.00013958,2]
[347133634,1735515044789,-500.0,0.00013958,2]
[347133635,1735515044798,-1011.9,0.00013958,2]
[347133636,1735515044807,-922.02,0.00013958,2]
[347133637,1735515044817,-500.0,0.00013958,2]
[347133638,1735515044827,-680.45,0.00013958,2]
[347133639,1735515044836,-500.0,0.00013959,2]
[347133640,1735515044846,-500.0,0.00013959,2]
[347133641,1735515044856,-500.0,0.00013959,2]
[347133642,1735515044865,-500.0,0.00013959,2]
[347133643,1735515044875,-500.0,0.00013959,2]
[347133644,1735515044885,-500.0,0.00013959,2]
[347133645,1735515044894,-527.45,0.00013959,2]
[347133646,1735515044904,-500.0,0.00013959,2]
[347133647,1735515044913,-500.0,0.00013959,2]
[347133648,1735515044923,-511.44,0.00013959,2]
[347133649,1735515044932,-500.0,0.00013959,2]
[347133650,1735515044942,-500.0,0.00013959,2]
[347133651,1735515044951,-500.0,0.00013959,2]
[347133652,1735515044960,-500.0,0.00013959,2]
[347133653,1735515044970,-500.0,0.00013959,2]
[347133654,1735515044980,-500.0,0.00013959,2]
[347133655,1735515044990,-500.0,0.00013959,2]
[347133656,1735515045000,-500.0,0.00013959,2]
[347133657,1735515045010,-500.0,0.00013959,2]
[347133658,1735515045019,-500.0,0.00013959,2]
[347133659,1735515045030,-583.2,0.00013959,2]
[347133660,1735515045040,-500.0,0.00013959,2]
[347133661,1735515045051,-500.0,0.00013959,2]
[347133662,1735515045061,-577.55,0.00013959,2]
[347133663,1735515045070,-500.0,0.00013959,2]
[347133664,1735515045080,-500.0,0.00013959,2]
[347133665,1735515045090,-481.83351991,0.00013959,2]
[347133666,1735515045099,-500.0,0.00013959,2]
[347133667,1735515045110,-635.39,0.00013959,2]
[347133668,1735515045119,-598.45,0.00013959,2]
[347133669,1735515045129,-500.0,0.00013959,2]
[347133670,1735515045139,-500.0,0.00013959,2]
[347133671,1735515045148,-500.0,0.00013959,2]
[347133672,1735515045158,-588.4,0.00013959,2]
[347133673,1735515045167,-170.26348401,0.00013959,2]
[347133674,1735515045177,-500.0,0.00013959,2]
[347133675,1735515045186,-552.75,0.00013959,2]
[347133676,1735515045195,-500.0,0.00013959,2]
[347133677,1735515045205,-500.0,0.00013959,2]
[347133678,1735515045214,-500.0,0.00013959,2]
[347133679,1735515045224,-500.0,0.00013959,2]
[347133680,1735515045233,-500.0,0.00013959,2]
[347133681,1735515045243,-500.0,0.00013959,2]
[347133682,1735515045252,-635.77,0.00013959,2]
[347133683,1735515045262,-500.0,0.00013959,2]
[347133684,1735515045271,-500.0,0.00013959,2]
[347133685,1735515045280,-500.0,0.00013959,2]
[347133686,1735515045290,-500.0,0.00013959,2]
[347133687,1735515045299,-267.22015717,0.00013959,2]
[347133688,1735515045308,-579.66,0.00013959,2]
[347133689,1735515045318,-500.0,0.00013959,2]
[347133690,1735515045328,-589.93,0.00013959,2]
[347133691,1735515045337,-500.0,0.00013959,2]
[347133692,1735515045346,-542.89,0.00013959,2]
[347133693,1735515045356,-500.0,0.00013959,2]
[347133694,1735515045365,-513.81,0.00013959,2]
[347133695,1735515045375,-671.55,0.00013959,2]
[347133696,1735515045384,-500.0,0.00013959,2]
[347133697,1735515045393,-744.82,0.00013959,2]
[347133698,1735515045402,-500.0,0.00013959,2]
[347133699,1735515045412,-500.0,0.00013959,2]
[347133700,1735515045421,-500.0,0.00013959,2]
[347133701,1735515045430,-539.39,0.00013959,2]
[347133702,1735515045440,-2883.59,0.00013959,2]
[347133703,1735515045449,-500.0,0.00013959,2]
[347133704,1735515045458,-500.0,0.00013959,2]
[347133705,1735515045468,-500.0,0.00013959,2]
[347133706,1735515045479,-1817.61,0.00013959,2]
[347133707,1735515045490,-1161.644597,0.00013959,2]
[347133708,1735515045499,-1250.304344,0.00013959,2]
[347133709,1735515045508,-500.0,0.00013959,2]
[347133710,1735515045518,-500.0,0.00013959,2]
[347133711,1735515045527,-1346.53,0.00013959,2]
[347133712,1735515045536,-686.36,0.00013959,2]
[347133713,1735515045546,-500.0,0.00013959,2]
[347133714,1735515045555,-656.62,0.00013959,2]
[347133715,1735515045564,-500.0,0.00013959,2]
[347133716,1735515045574,-1066.67,0.00013959,2]
[347133717,1735515045583,-545.92,0.00013959,2]
[347133718,1735515045595,-760.28,0.00013959,2]
[347133719,1735515045606,-500.0,0.00013959,2]
[347133720,1735515045615,-500.0,0.00013959,2]
[347133721,1735515045624,-1040.29,0.00013959,2]
[347133723,1735515045634,-689.69,0.00013959,2]
[347133724,1735515045643,-500.0,0.00013959,2]
[347133725,1735515045653,-500.0,0.00013959,2]
[347133726,1735515045663,-500.0,0.00013959,2]
[347133727,1735515045673,-577.0,0.00013959,2]
[347133728,1735515045683,-674.36,0.00013959,2]
[347133729,1735515045693,-500.0,0.00013959,2]
[347133730,1735515045702,-500.0,0.00013959,2]
[347133731,1735515045711,-345.42307855,0.00013959,2]
[347133732,1735515046154,-500.0,0.00013545,2]
[347133733,1735515046167,-500.0,0.00013819,2]
[347133734,1735515046179,-154.57692145,0.00013959,2]
[347133735,1735515046191,-563.83,0.00013959,2]
[347133736,1735515046205,-521.07,0.00013959,2]
[347133737,1735515046217,-5718.98,0.00013959,2]
[347133738,1735515046229,-577.8,0.00013959,2]
[347133739,1735515046243,-6803.41470355,0.00014,2]
[347133740,1735515046258,-13196.58529645,0.00014,2]
[347133741,1735515046270,-500.0,0.00014,2]
[347133742,1735515046282,-1000.0,0.00014091,2]
[347133743,1735515046295,-205.26129594,0.00014091,2]
[347133744,1735515046307,-1075.52,0.00014091,2]
[347133745,1735515046320,-500.0,0.00014091,2]
[347133746,1735515046333,-2695.72295583,0.00014091,2]
[347133747,1735515047265,-500.0,0.00013269,2]
[347133748,1735515047277,-500.0,0.00013269,2]
[347133749,1735515047288,-500.0,0.00013269,2]
[347133750,1735515047298,-207.3778891,0.00013543,2]
[347133751,1735515047309,-957.51537429,0.00013543,2]
[347133752,1735515047322,-209.44462571,0.00013543,2]
[347133753,1735515047332,-1054.38704417,0.00014091,2]
[347133754,1735515047343,-1104.7,0.00014091,2]
[347133755,1735515047354,-628.61,0.00014091,2]
[347133756,1735515047367,-1337.65,0.00014091,2]
[347133757,1735515047377,-695.54,0.00014091,2]
[347133758,1735515047388,-577.55,0.00014091,2]
[347133759,1735515047399,-1693.76589012,0.00014091,2]
[347133760,1735515047419,-70.38410988,0.00014091,2]
[347133761,1735515047429,-602.66,0.00014091,2]
[347133762,1735515047440,-1437.0,0.00014091,2]
[347133763,1735515047451,-940.3,0.00014091,2]
[347133764,1735515047463,-560.46,0.00014091,2]
[347133765,1735515047475,-500.0,0.00014091,2]
[347133766,1735515047486,-758.3874529,0.00014091,2]
[347133767,1735515047499,-445.6325471,0.00014091,2]
[347133768,1735515047511,-98.69472537,0.00014091,2]
[347133769,1735515047536,-1166.96,0.00013817,2]
[347133770,1735515047548,-375.45511013,0.00014091,2]
[347133771,1735515047615,-1282.6501645,0.00014091,2]
[347133772,1735515047626,-825.39,0.00014091,2]
[347133773,1735515047637,-551.61,0.00014091,2]
[347133774,1735515047648,-500.0,0.00014091,2]
[347133775,1735515047659,-500.0,0.00014091,2]
[347133776,1735515047670,-500.0,0.00014091,2]
[347133777,1735515047680,-500.0,0.00014092,2]
[347133778,1735515047691,-500.0,0.00014092,2]
[347133779,1735515047702,-500.0,0.00014092,2]
[347133780,1735515047713,-509.36,0.00014092,2]
[347133781,1735515047724,-500.0,0.00014092,2]
[347133782,1735515047734,-250.58983544,0.00014092,2]
[347133783,1735515047746,-249.41016456,0.00014092,2]
[347133784,1735515047757,-344.6520735,0.00014092,2]
[347133785,1735515047771,-155.3479265,0.00014092,2]
[347133786,1735515047779,-199.82299032,0.00014092,2]
[347133787,1735515047791,-300.17700968,0.00014092,2]
[347133788,1735515047801,-31.07298972,0.00014092,2]
[347133789,1735515047812,-468.92701028,0.00014092,2]
[347133790,1735515047820,-290.57296672,0.00014092,2]
[347133791,1735515048183,-500.0,0.0001327,2]
[347133792,1735515048192,-170.8062637,0.00013545,2]
[347133793,1735515048614,-329.1937363,0.00013545,2]
[347133794,1735515048636,-500.0,0.00013819,2]
[347133795,1735515048657,-1166.96,0.00014091,2]
[347133796,1735515048680,-209.42703328,0.00014092,2]
[347133797,1735515048690,-500.0,0.00014092,2]
[347133798,1735515048700,-500.0,0.00014092,2]
[347133799,1735515048710,-136.74390669,0.00014092,2]
[347133800,1735515048722,-363.25609331,0.00014092,2]
[347133801,1735515048731,-111.06779456,0.00014092,2]
[347133802,1735515048988,-408.07532975,0.00013411,2]
[347133803,1735515048998,-388.93220544,0.00014092,2]
[347133804,1735515049007,-701.9,0.00014092,2]
[347133805,1735515049016,-541.52,0.00014092,2]
[347133806,1735515049025,-500.0,0.00014092,2]
[347133807,1735515049034,-722.98,0.00014092,2]
[347133808,1735515049043,-500.0,0.00014092,2]
[347133809,1735515049052,-31.39945379,0.00014092,2]
[347133810,1735515049063,-468.60054621,0.00014092,2]
[347133811,1735515049072,-880.42984256,0.00014092,2]
[347133812,1735515049683,-243.00015744,0.00014092,2]
[347133813,1735515049692,-99.51584257,0.00014092,2]
[347133814,1735515049703,-280.07452879,0.00014092,2]
[347133815,1735515050076,-500.0,0.00013411,2]
[347133816,1735515050086,-126.04759607,0.00013685,2]
[347133817,1735515050098,-395.96240393,0.00013685,2]
[347133818,1735515050109,-120.40962864,0.00014092,2]
[347133819,1735515050119,-728.18,0.00014092,2]
[347133820,1735515050128,-500.0,0.00014092,2]
[347133821,1735515050137,-500.0,0.00014092,2]
[347133822,1735515050146,-758.63,0.00014092,2]
[347133823,1735515050155,-500.0,0.00014092,2]
[347133824,1735515050164,-500.0,0.00014092,2]
[347133825,1735515050172,-1072.05,0.00014092,2]
[347133826,1735515050181,-542.56,0.00014092,2]
[347133827,1735515050191,-500.0,0.00014092,2]
[347133828,1735515050201,-500.0,0.00014092,2]
[347133829,1735515050209,-809.45,0.00014092,2]
[347133830,1735515050218,-597.63145191,0.00014092,2]
[347133831,1735515050227,-682.44,0.00014092,2]
[347133832,1735515050236,-500.0,0.00014092,2]
[347133833,1735515050246,-519.17107981,0.00014092,2]
[347133834,1735515050257,-46.08892019,0.00014092,2]
[347133835,1735515050266,-835.53,0.00014092,2]
[347133836,1735515050276,-500.0,0.00014092,2]
[347133837,1735515050285,-756.45,0.00014092,2]
[347133838,1735515050294,-124.99517981,0.00014092,2]
[347133839,1735515050305,-448.27482019,0.00014092,2]
[347133840,1735515050313,-500.0,0.00014092,2]
[347133841,1735515050322,-500.0,0.00014092,2]
[347133842,1735515050331,-516.16910901,0.00014092,2]
[347133843,1735515050342,-935.12089099,0.00014092,2]
[347133844,1735515050350,-500.0,0.00014092,2]
[347133845,1735515050361,-500.0,0.00014092,2]
[347133846,1735515050370,-867.02,0.00014092,2]
[347133847,1735515050379,-500.0,0.00014092,2]
[347133848,1735515050387,-1288.27,0.00014092,2]
[347133849,1735515050396,-536.85,0.00014092,2]
[347133850,1735515050405,-732.34,0.00014092,2]
[347133851,1735515050413,-500.0,0.00014092,2]
[347133852,1735515050422,-500.0,0.00014092,2]
[347133853,1735515050431,-517.31,0.00014092,2]
[347133854,1735515050440,-500.0,0.00014092,2]
[347133855,1735515050449,-1404.78,0.00014092,2]
[347133856,1735515050458,-545.06,0.00014092,2]
[347133857,1735515050467,-619.57,0.00014092,2]
[347133858,1735515050476,-678.76,0.00014092,2]
[347133859,1735515050485,-917.89,0.00014092,2]
[347133860,1735515050495,-819.71,0.00014092,2]
[347133861,1735515050503,-500.0,0.00014092,2]
[347133862,1735515050513,-500.0,0.00014092,2]
[347133863,1735515050523,-500.0,0.00014092,2]
[347133864,1735515050532,-500.0,0.00014092,2]
[347133865,1735515050541,-500.0,0.00014092,2]
[347133866,1735515050550,-1108.14,0.00014092,2]
[347133867,1735515050559,-500.0,0.00014092,2]
[347133868,1735515050568,-500.0,0.00014092,2]
[347133869,1735515050577,-558.64,0.00014092,2]
[347133870,1735515050586,-518.38,0.00014092,2]
[347133871,1735515050599,-828.17,0.00014092,2]
[347133872,1735515050610,-500.0,0.00014092,2]
[347133873,1735515050619,-650.35,0.00014092,2]
[347133874,1735515050629,-571.12,0.00014092,2]
[347133875,1735515050639,-741.36,0.00014092,2]
[347133876,1735515050649,-682.49,0.00014092,2]
[347133877,1735515050658,-500.0,0.00014092,2]
[347133878,1735515050668,-558.91,0.00014092,2]
[347133879,1735515050677,-500.0,0.00014092,2]
[347133880,1735515050686,-740.49,0.00014092,2]
[347133881,1735515050695,-651.49,0.00014092,2]
[347133882,1735515050705,-683.0,0.00014092,2]
[347133883,1735515050714,-956.02,0.00014092,2]
[347133884,1735515050723,-686.84,0.00014092,2]
[347133885,1735515050732,-676.6,0.00014092,2]
[347133886,1735515050742,-671.27,0.00014092,2]